[Event "Snabb-SM för veteraner, 65+ 2019"]
[Site "Schackcentrum, Vegagatan 20, Gothenburg, Sweden"]
[Date "2019.10.06"]
[Round "7.6"]
[White "Olsson, Tomas"]
[Black "Andersson, Kaj"]
[Result "1-0"]
[TimeControl "15 minutes + 10 seconds per move from move one"]
[WhiteFideId "1702696"]
[BlackFideId "1709860"]
[WhiteElo "1973"]
[BlackElo "2083"]

1. e4 {[%clk 00:15:16]} {[%emt 00:00:02]} c5 {[%clk 00:15:18]} {[%emt
00:00:02]} 2. d4 {[%clk 00:15:23]} {[%emt 00:00:04]} cxd4 {[%clk 00:15:27]}
{[%emt 00:00:02]} 3. Nf3 {[%clk 00:15:32]} {[%emt 00:00:01]} d6 {[%clk
00:15:34]} {[%emt 00:00:03]} 4. Nxd4 {[%clk 00:15:40]} {[%emt 00:00:02]} Nf6
{[%clk 00:15:41]} {[%emt 00:00:02]} 5. Nc3 {[%clk 00:15:48]} {[%emt 00:00:02]}
a6 {[%clk 00:15:50]} {[%emt 00:00:01]} 6. Be2 {[%clk 00:15:49]} {[%emt
00:00:09]} e5 {[%clk 00:15:58]} {[%emt 00:00:02]} 7. Nb3 {[%clk 00:15:57]}
{[%emt 00:00:02]} Be6 {[%clk 00:16:04]} {[%emt 00:00:04]} 8. f4 {[%clk
00:15:53]} {[%emt 00:00:15]} Nbd7 {[%clk 00:15:44]} {[%emt 00:00:29]} 9. f5
{[%clk 00:15:31]} {[%emt 00:00:31]} Bxb3 {[%clk 00:15:52]} {[%emt 00:00:02]} 10.
axb3 {[%clk 00:15:30]} {[%emt 00:00:12]} Rc8 {[%clk 00:16:00]} {[%emt
00:00:02]} 11. Bf3 {[%clk 00:15:25]} {[%emt 00:00:15]} Be7 {[%clk 00:16:00]}
{[%emt 00:00:09]} 12. Be3 {[%clk 00:15:00]} {[%emt 00:00:35]} O-O {[%clk
00:15:58]} {[%emt 00:00:12]} 13. Qd2 {[%clk 00:12:24]} {[%emt 00:02:46]} Kh8
{[%clk 00:15:33]} {[%emt 00:00:36]} 14. g4 {[%clk 00:11:38]} {[%emt 00:00:56]}
Ne8 {[%clk 00:14:10]} {[%emt 00:01:33]} 15. g5 {[%clk 00:11:42]} {[%emt
00:00:07]} Nc7 {[%clk 00:13:46]} {[%emt 00:00:33]} 16. h4 {[%clk 00:11:34]}
{[%emt 00:00:17]} d5 {[%clk 00:12:58]} {[%emt 00:00:59]} 17. exd5 {[%clk
00:11:11]} {[%emt 00:00:33]} Bc5 {[%clk 00:12:40]} {[%emt 00:00:28]} 18. O-O-O
{[%clk 00:09:51]} {[%emt 00:01:30]} Nb5 {[%clk 00:12:25]} {[%emt 00:00:25]} 19.
Ne4 {[%clk 00:09:23]} {[%emt 00:00:38]} Bxe3 {[%clk 00:11:43]} {[%emt
00:00:50]} 20. Qxe3 {[%clk 00:09:22]} {[%emt 00:00:12]} Nd4 {[%clk 00:11:37]}
{[%emt 00:00:16]} 21. Rh2 {[%clk 00:09:00]} {[%emt 00:00:32]} Nxf5 {[%clk
00:10:20]} {[%emt 00:01:27]} 22. Qd3 {[%clk 00:08:40]} {[%emt 00:00:31]} Nd4
{[%clk 00:09:23]} {[%emt 00:01:07]} 23. Bg4 {[%clk 00:08:31]} {[%emt 00:00:19]}
Nc5 {[%clk 00:09:11]} {[%emt 00:00:22]} 24. Nxc5 {[%clk 00:07:49]} {[%emt
00:00:51]} Rxc5 {[%clk 00:09:19]} {[%emt 00:00:01]} 25. Kb1 {[%clk 00:07:16]}
{[%emt 00:00:44]} Rxd5 {[%clk 00:09:08]} {[%emt 00:00:21]} 26. Qe4 {[%clk
00:07:10]} {[%emt 00:00:15]} Rd6 {[%clk 00:06:15]} {[%emt 00:03:03]} 27. Rhd2
{[%clk 00:06:17]} {[%emt 00:01:03]} Qa5 {[%clk 00:04:35]} {[%emt 00:01:50]} 28.
c3 {[%clk 00:05:11]} {[%emt 00:01:17]} Nxb3 {[%clk 00:02:28]} {[%emt 00:02:17]}
29. Rxd6 {[%clk 00:05:02]} {[%emt 00:00:19]} Qa1+ {[%clk 00:01:07]} {[%emt
00:01:31]} 30. Kc2 {[%clk 00:05:06]} {[%emt 00:00:06]} Nd4+ {[%clk 00:01:14]}
{[%emt 00:00:04]} 31. R6xd4 {[%clk 00:05:00]} {[%emt 00:00:16]} Qa5 {[%clk
00:01:11]} {[%emt 00:00:13]} 32. Rd5 {[%clk 00:05:04]} {[%emt 00:00:06]} Qa4+
{[%clk 00:01:18]} {[%emt 00:00:04]} 33. Qxa4 {[%clk 00:05:11]} {[%emt
00:00:03]} 1-0

[Event "Snabb-SM för veteraner, 65+ 2019"]
[Site "Schackcentrum, Vegagatan 20, Gothenburg, Sweden"]
[Date "2019.10.06"]
[Round "7.7"]
[White "Franzen, Thomas"]
[Black "Alfven, Jorgen"]
[Result "1/2-1/2"]
[TimeControl "15 minutes + 10 seconds per move from move one"]
[WhiteFideId "1706039"]
[BlackFideId "1715950"]
[WhiteElo "1860"]
[BlackElo "1791"]

1. d4 {[%clk 00:15:14]} {[%emt 00:00:06]} Nf6 {[%clk 00:15:16]} {[%emt
00:00:04]} 2. Nf3 {[%clk 00:15:19]} {[%emt 00:00:05]} e6 {[%clk 00:15:22]}
{[%emt 00:00:04]} 3. g3 {[%clk 00:15:24]} {[%emt 00:00:05]} d5 {[%clk
00:15:25]} {[%emt 00:00:06]} 4. Bg2 {[%clk 00:15:33]} {[%emt 00:00:01]} Bd6
{[%clk 00:15:19]} {[%emt 00:00:17]} 5. c4 {[%clk 00:15:35]} {[%emt 00:00:08]}
c6 {[%clk 00:15:26]} {[%emt 00:00:03]} 6. Qc2 {[%clk 00:15:06]} {[%emt
00:00:39]} dxc4 {[%clk 00:15:07]} {[%emt 00:00:29]} 7. Qxc4 {[%clk 00:15:12]}
{[%emt 00:00:04]} Nbd7 {[%clk 00:15:06]} {[%emt 00:00:10]} 8. O-O {[%clk
00:15:00]} {[%emt 00:00:21]} Qc7 {[%clk 00:14:49]} {[%emt 00:00:27]} 9. Nc3
{[%clk 00:14:47]} {[%emt 00:00:24]} a6 {[%clk 00:14:56]} {[%emt 00:00:03]} 10.
a3 {[%clk 00:14:15]} {[%emt 00:00:42]} b5 {[%clk 00:14:49]} {[%emt 00:00:18]}
11. Qd3 {[%clk 00:14:23]} c5 {[%clk 00:14:27]} {[%emt 00:00:33]} 12. e4 {[%clk
00:13:52]} {[%emt 00:00:41]} c4 {[%clk 00:14:13]} {[%emt 00:00:24]} 13. Qe2
{[%clk 00:14:00]} {[%emt 00:00:01]} Be7 {[%clk 00:13:45]} {[%emt 00:00:38]} 14.
Bf4 {[%clk 00:13:43]} {[%emt 00:00:27]} Qa7 {[%clk 00:11:53]} {[%emt 00:02:02]}
15. d5 {[%clk 00:11:26]} {[%emt 00:02:27]} O-O {[%clk 00:08:29]} {[%emt
00:03:33]} 16. dxe6 {[%clk 00:11:16]} {[%emt 00:00:20]} fxe6 {[%clk 00:08:37]}
{[%emt 00:00:03]} 17. Ng5 {[%clk 00:10:41]} {[%emt 00:00:45]} e5 {[%clk
00:07:54]} {[%emt 00:00:53]} 18. Be3 {[%clk 00:10:29]} {[%emt 00:00:22]} Nc5
{[%clk 00:07:42]} {[%emt 00:00:21]} 19. Nf3 {[%clk 00:07:56]} {[%emt 00:02:43]}
Bg4 {[%clk 00:07:07]} {[%emt 00:00:45]} 20. h3 {[%clk 00:08:04]} {[%emt
00:00:02]} Bxf3 {[%clk 00:07:15]} {[%emt 00:00:02]} 21. Bxf3 {[%clk 00:08:10]}
{[%emt 00:00:04]} Qc7 {[%clk 00:06:56]} {[%emt 00:00:29]} 22. Nd5 {[%clk
00:07:00]} {[%emt 00:01:20]} Nxd5 {[%clk 00:06:51]} {[%emt 00:00:14]} 23. exd5
{[%clk 00:07:09]} {[%emt 00:00:01]} Bd6 {[%clk 00:07:00]} 24. Rad1 {[%clk
00:06:47]} {[%emt 00:00:31]} Rae8 {[%clk 00:06:06]} {[%emt 00:01:05]} 25. Bg2
{[%clk 00:06:40]} {[%emt 00:00:18]} Qf7 {[%clk 00:05:51]} {[%emt 00:00:24]} 26.
Kh2 {[%clk 00:05:08]} {[%emt 00:01:41]} Nd3 {[%clk 00:05:26]} {[%emt 00:00:36]}
27. Be4 {[%clk 00:05:10]} {[%emt 00:00:08]} Nc5 {[%clk 00:05:11]} {[%emt
00:00:26]} 28. Bxc5 {[%clk 00:03:23]} {[%emt 00:01:57]} Bxc5 {[%clk 00:05:20]}
{[%emt 00:00:01]} 29. f3 {[%clk 00:03:25]} {[%emt 00:00:08]} Bd4 {[%clk
00:05:06]} {[%emt 00:00:23]} 30. Qc2 {[%clk 00:03:31]} {[%emt 00:00:03]} g6
{[%clk 00:05:14]} {[%emt 00:00:02]} 31. Qd2 {[%clk 00:02:16]} {[%emt 00:01:25]}
Kg7 {[%clk 00:05:18]} {[%emt 00:00:06]} 32. Rc1 {[%clk 00:02:23]} {[%emt
00:00:02]} Qc7 {[%clk 00:04:47]} {[%emt 00:00:41]} 33. Rfd1 {[%clk 00:02:17]}
{[%emt 00:00:16]} Qc5 {[%clk 00:04:55]} {[%emt 00:00:03]} 34. Rc2 {[%clk
00:02:17]} {[%emt 00:00:10]} Be3 {[%clk 00:04:57]} {[%emt 00:00:08]} 35. Qe2
{[%clk 00:02:24]} {[%emt 00:00:03]} Bd4 {[%clk 00:04:56]} {[%emt 00:00:12]} 36.
Qd2 {[%clk 00:01:50]} {[%emt 00:00:43]} Be3 {[%clk 00:04:58]} {[%emt 00:00:07]}
37. Qe2 {[%clk 00:02:00]} {[%emt 00:00:01]} Bd4 {[%clk 00:05:02]} {[%emt
00:00:06]} 38. Qd2 {[%emt 00:00:09]} a5 {[%emt 00:00:09]} 1/2-1/2

[Event "Snabb-SM för veteraner, 65+ 2019"]
[Site "Schackcentrum, Vegagatan 20, Gothenburg, Sweden"]
[Date "2019.10.06"]
[Round "7.8"]
[White "Svensson, Soren"]
[Black "Nilsson, Weine"]
[Result "1/2-1/2"]
[TimeControl "15 minutes + 10 seconds per move from move one"]
[WhiteFideId "1714937"]
[BlackFideId "1716727"]
[WhiteElo "1845"]
[BlackElo "1847"]

1. d4 {[%clk 00:15:15]} {[%emt 00:00:04]} Nf6 {[%clk 00:15:16]} {[%emt
00:00:05]} 2. Nf3 {[%clk 00:15:19]} {[%emt 00:00:06]} e6 {[%clk 00:15:22]}
{[%emt 00:00:04]} 3. c4 {[%clk 00:15:24]} {[%emt 00:00:05]} Bb4+ {[%clk
00:15:18]} {[%emt 00:00:14]} 4. Nbd2 {[%clk 00:14:48]} {[%emt 00:00:47]} O-O
{[%clk 00:15:06]} {[%emt 00:00:22]} 5. a3 {[%clk 00:14:50]} {[%emt 00:00:08]}
Bxd2+ {[%clk 00:14:44]} {[%emt 00:00:32]} 6. Bxd2 {[%clk 00:14:55]} {[%emt
00:00:04]} Ne4 {[%clk 00:14:31]} {[%emt 00:00:23]} 7. Bf4 {[%clk 00:14:43]}
{[%emt 00:00:21]} d6 {[%clk 00:14:02]} {[%emt 00:00:40]} 8. e3 {[%clk
00:14:44]} {[%emt 00:00:09]} b6 {[%clk 00:13:58]} {[%emt 00:00:14]} 9. Bd3
{[%clk 00:14:16]} {[%emt 00:00:37]} Bb7 {[%clk 00:14:03]} {[%emt 00:00:05]} 10.
O-O {[%clk 00:14:08]} {[%emt 00:00:18]} Nd7 {[%clk 00:13:48]} {[%emt 00:00:25]}
11. Qc2 {[%clk 00:13:26]} {[%emt 00:00:52]} f5 {[%emt 00:00:23]} 12. Nd2 {[%clk
00:12:06]} {[%emt 00:01:25]} e5 {[%clk 00:12:51]} {[%emt 00:00:59]} 13. Bxe4
{[%clk 00:09:16]} {[%emt 00:03:00]} fxe4 {[%clk 00:12:36]} {[%emt 00:00:25]} 14.
Bg3 {[%clk 00:09:11]} {[%emt 00:00:14]} exd4 {[%clk 00:12:02]} {[%emt
00:00:45]} 15. exd4 {[%clk 00:09:13]} {[%emt 00:00:09]} Qf6 {[%clk 00:10:03]}
{[%emt 00:02:06]} 16. d5 {[%clk 00:07:19]} {[%emt 00:02:07]} Rae8 {[%clk
00:08:36]} {[%emt 00:01:36]} 17. Rae1 {[%clk 00:07:04]} {[%emt 00:00:26]} Qg6
{[%clk 00:07:52]} {[%emt 00:00:54]} 18. b4 {[%clk 00:06:38]} {[%emt 00:00:37]}
e3 {[%clk 00:06:38]} {[%emt 00:01:24]} 19. Qxg6 {[%clk 00:05:57]} {[%emt
00:00:51]} exf2+ {[%clk 00:06:39]} {[%emt 00:00:08]} 20. Bxf2 {[%clk 00:05:55]}
{[%emt 00:00:12]} hxg6 {[%clk 00:06:44]} {[%emt 00:00:05]} 21. Bd4 {[%clk
00:05:07]} {[%emt 00:00:57]} a6 {[%clk 00:06:20]} {[%emt 00:00:35]} 22. Nf3
{[%clk 00:04:50]} {[%emt 00:00:27]} b5 {[%clk 00:06:14]} {[%emt 00:00:16]} 23.
cxb5 {[%clk 00:03:18]} {[%emt 00:01:42]} axb5 {[%clk 00:06:13]} {[%emt
00:00:11]} 24. Rc1 {[%clk 00:02:11]} {[%emt 00:01:17]} Bxd5 {[%clk 00:06:19]}
{[%emt 00:00:03]} 25. Rxc7 {[%clk 00:02:16]} {[%emt 00:00:05]} Nf6 {[%clk
00:06:26]} {[%emt 00:00:04]} 26. Nh4 {[%clk 00:02:00]} {[%emt 00:00:25]} Rf7
{[%clk 00:04:39]} {[%emt 00:01:57]} 27. Rxf7 {[%clk 00:01:27]} {[%emt
00:00:43]} Kxf7 {[%clk 00:04:17]} {[%emt 00:00:32]} 28. Nf3 {[%clk 00:01:25]}
{[%emt 00:00:12]} Bc4 {[%clk 00:04:16]} {[%emt 00:00:11]} 29. Rc1 {[%clk
00:01:25]} {[%emt 00:00:09]} Ra8 {[%clk 00:04:13]} {[%emt 00:00:12]} 30. Bb2
{[%clk 00:01:26]} {[%emt 00:00:10]} Ne4 {[%clk 00:03:42]} {[%emt 00:00:41]} 31.
Re1 {[%clk 00:00:50]} {[%emt 00:00:45]} Nf6 {[%clk 00:03:11]} {[%emt 00:00:41]}
32. Ng5+ {[%clk 00:00:49]} {[%emt 00:00:11]} Kg8 {[%clk 00:03:00]} {[%emt
00:00:20]} 33. Re7 {[%clk 00:00:49]} {[%emt 00:00:12]} Rd8 {[%clk 00:02:06]}
{[%emt 00:01:02]} 34. Ne6 {[%clk 00:00:46]} {[%emt 00:00:15]} Bxe6 {[%clk
00:02:07]} {[%emt 00:00:09]} 35. Rxe6 {[%clk 00:00:53]} {[%emt 00:00:03]} Kf7
{[%clk 00:02:15]} {[%emt 00:00:02]} 36. Re2 {[%clk 00:00:55]} {[%emt 00:00:08]}
d5 {[%clk 00:02:15]} {[%emt 00:00:11]} 37. Bd4 {[%clk 00:00:36]} {[%emt
00:00:29]} Ne4 {[%clk 00:02:07]} {[%emt 00:00:17]} 38. Rc2 {[%clk 00:00:39]}
{[%emt 00:00:07]} Ra8 {[%clk 00:02:04]} {[%emt 00:00:13]} 39. Rc7+ {[%clk
00:00:42]} {[%emt 00:00:08]} Ke6 {[%clk 00:02:03]} {[%emt 00:00:11]} 40. Bb2
{[%clk 00:00:50]} {[%emt 00:00:02]} g5 {[%clk 00:01:59]} {[%emt 00:00:14]} 41.
Rb7 {[%clk 00:00:20]} {[%emt 00:00:40]} Rc8 {[%clk 00:02:05]} {[%emt 00:00:04]}
42. h3 {[%clk 00:00:15]} {[%emt 00:00:14]} Rc2 {[%clk 00:02:11]} {[%emt
00:00:04]} 43. Bxg7 {[%clk 00:00:21]} {[%emt 00:00:05]} Ra2 {[%clk 00:01:44]}
{[%emt 00:00:34]} 44. Rxb5 {[%emt 00:00:50]} Rxa3 {[%emt 00:00:02]} 45. Rb6+
{[%emt 00:00:11]} Kf5 {[%emt 00:00:59]} 46. Rb8 {[%emt 00:00:05]} Kf4 {[%emt
00:00:05]} 47. Bd4 {[%emt 00:00:30]} Rd3 {[%emt 00:00:05]} 48. Rf8+ {[%emt
00:00:04]} Kg3 {[%emt 00:00:08]} 49. Be5+ {[%emt 00:00:11]} Kh4 {[%emt
00:00:01]} 1/2-1/2

[Event "Snabb-SM för veteraner, 65+ 2019"]
[Site "Schackcentrum, Vegagatan 20, Gothenburg, Sweden"]
[Date "2019.10.06"]
[Round "7.9"]
[White "Olsson, Torgny"]
[Black "Herrman, Jan"]
[Result "0-1"]
[TimeControl "15 minutes + 10 seconds per move from move one"]
[WhiteFideId "1717340"]
[BlackFideId "1731882"]
[WhiteElo "1716"]
[BlackElo "1929"]

1. d4 {[%clk 00:15:16]} {[%emt 00:00:02]} Nf6 {[%clk 00:15:15]} {[%emt
00:00:05]} 2. Bf4 {[%clk 00:15:20]} {[%emt 00:00:06]} e6 {[%clk 00:15:18]}
{[%emt 00:00:07]} 3. e3 {[%clk 00:15:25]} {[%emt 00:00:06]} d5 {[%clk
00:15:15]} {[%emt 00:00:12]} 4. Nf3 {[%clk 00:14:55]} {[%emt 00:00:40]} Bd6
{[%clk 00:15:03]} {[%emt 00:00:22]} 5. Bg3 {[%clk 00:15:00]} {[%emt 00:00:06]}
O-O {[%clk 00:15:08]} {[%emt 00:00:05]} 6. c3 {[%clk 00:14:57]} {[%emt
00:00:13]} b6 {[%clk 00:14:59]} {[%emt 00:00:19]} 7. Bd3 {[%clk 00:14:25]}
{[%emt 00:00:42]} c5 {[%clk 00:14:53]} {[%emt 00:00:15]} 8. Nbd2 {[%clk
00:14:05]} {[%emt 00:00:29]} Ba6 {[%clk 00:14:55]} {[%emt 00:00:09]} 9. Bc2
{[%clk 00:13:34]} {[%emt 00:00:42]} Nc6 {[%clk 00:14:51]} {[%emt 00:00:13]} 10.
Ne5 {[%clk 00:13:23]} {[%emt 00:00:22]} Qc7 {[%clk 00:14:40]} {[%emt 00:00:21]}
11. f4 {[%clk 00:13:18]} {[%emt 00:00:15]} Rac8 {[%clk 00:14:20]} {[%emt
00:00:29]} 12. Bh4 {[%clk 00:11:45]} {[%emt 00:01:43]} Be7 {[%clk 00:13:49]}
{[%emt 00:00:41]} 13. g4 {[%clk 00:10:18]} {[%emt 00:01:38]} cxd4 {[%clk
00:13:46]} {[%emt 00:00:13]} 14. exd4 {[%clk 00:09:53]} {[%emt 00:00:34]} Nxd4
{[%clk 00:13:09]} {[%emt 00:00:47]} 15. g5 {[%clk 00:08:33]} {[%emt 00:01:29]}
Nxc2+ {[%clk 00:12:42]} {[%emt 00:00:37]} 16. Qxc2 {[%clk 00:08:34]} {[%emt
00:00:10]} Ne4 {[%clk 00:10:48]} {[%emt 00:02:04]} 17. Nxe4 {[%clk 00:06:35]}
{[%emt 00:02:09]} dxe4 {[%clk 00:10:54]} {[%emt 00:00:03]} 18. O-O-O {[%clk
00:05:57]} {[%emt 00:00:48]} Bd6 {[%clk 00:08:49]} {[%emt 00:02:15]} 19. Bg3
{[%clk 00:04:44]} {[%emt 00:01:23]} Bxe5 {[%clk 00:08:40]} {[%emt 00:00:20]} 20.
fxe5 {[%clk 00:04:53]} {[%emt 00:00:02]} Bd3 {[%clk 00:08:43]} {[%emt
00:00:06]} 21. Rxd3 {[%clk 00:03:08]} {[%emt 00:01:56]} exd3 {[%clk 00:08:51]}
{[%emt 00:00:02]} 22. Qxd3 {[%clk 00:03:17]} {[%emt 00:00:02]} Rfd8 {[%clk
00:06:41]} {[%emt 00:02:20]} 23. Qe3 {[%clk 00:02:00]} {[%emt 00:01:26]} b5
{[%clk 00:06:13]} {[%emt 00:00:39]} 24. Kc2 {[%clk 00:01:55]} {[%emt 00:00:14]}
b4 {[%clk 00:06:16]} {[%emt 00:00:07]} 25. Re1 {[%clk 00:01:51]} {[%emt
00:00:14]} Qa5 {[%clk 00:05:26]} {[%emt 00:00:59]} 26. Kb3 {[%clk 00:01:15]}
{[%emt 00:00:47]} bxc3 {[%clk 00:04:52]} {[%emt 00:00:45]} 27. bxc3 {[%clk
00:01:04]} {[%emt 00:00:21]} Rb8+ {[%clk 00:04:45]} {[%emt 00:00:16]} 0-1

[Event "Snabb-SM för veteraner, 65+ 2019"]
[Site "Schackcentrum, Vegagatan 20, Gothenburg, Sweden"]
[Date "2019.10.06"]
[Round "8.1"]
[White "Stroem, Leif"]
[Black "Olsson, Tomas"]
[Result "1/2-1/2"]
[TimeControl "15 minutes + 10 seconds per move from move one"]
[WhiteFideId "1709410"]
[BlackFideId "1702696"]
[WhiteElo "2014"]
[BlackElo "1973"]

1. c4 {[%clk 00:15:19]} Nf6 {[%clk 00:15:14]} {[%emt 00:00:07]} 2. g3 {[%clk
00:15:27]} {[%emt 00:00:01]} g6 {[%clk 00:15:18]} {[%emt 00:00:05]} 3. Bg2
{[%clk 00:15:36]} {[%emt 00:00:01]} Bg7 {[%clk 00:15:26]} {[%emt 00:00:02]} 4.
Nc3 {[%clk 00:15:45]} {[%emt 00:00:02]} d6 {[%clk 00:15:28]} {[%emt 00:00:08]}
5. e4 {[%clk 00:15:49]} {[%emt 00:00:06]} c5 {[%clk 00:15:24]} {[%emt
00:00:14]} 6. Nge2 {[%clk 00:15:56]} {[%emt 00:00:03]} Nc6 {[%clk 00:15:27]}
{[%emt 00:00:07]} 7. O-O {[%clk 00:16:02]} {[%emt 00:00:03]} h5 {[%clk
00:15:21]} {[%emt 00:00:16]} 8. h4 {[%clk 00:15:55]} {[%emt 00:00:18]} Be6
{[%clk 00:15:10]} {[%emt 00:00:21]} 9. d3 {[%clk 00:16:02]} {[%emt 00:00:03]}
Qc8 {[%clk 00:15:05]} {[%emt 00:00:15]} 10. Nf4 {[%clk 00:15:38]} {[%emt
00:00:34]} Bg4 {[%clk 00:14:51]} {[%emt 00:00:24]} 11. f3 {[%clk 00:15:46]}
{[%emt 00:00:02]} Bd7 {[%clk 00:14:44]} {[%emt 00:00:17]} 12. Rb1 {[%clk
00:15:33]} {[%emt 00:00:23]} O-O {[%clk 00:12:48]} {[%emt 00:02:05]} 13. Kh2
{[%clk 00:15:39]} {[%emt 00:00:04]} a5 {[%clk 00:11:45]} {[%emt 00:01:14]} 14.
Be3 {[%clk 00:15:46]} {[%emt 00:00:03]} Nd4 {[%clk 00:11:40]} {[%emt 00:00:15]}
15. Bxd4 {[%clk 00:14:58]} {[%emt 00:00:57]} cxd4 {[%clk 00:11:42]} {[%emt
00:00:08]} 16. Ncd5 {[%clk 00:15:06]} {[%emt 00:00:02]} Qd8 {[%clk 00:11:15]}
{[%emt 00:00:37]} 17. Rf2 {[%clk 00:12:10]} {[%emt 00:03:06]} e6 {[%clk
00:10:58]} {[%emt 00:00:27]} 18. Nxf6+ {[%clk 00:12:14]} {[%emt 00:00:06]} Bxf6
{[%clk 00:11:04]} {[%emt 00:00:04]} 19. b4 {[%clk 00:12:11]} {[%emt 00:00:13]}
Bxh4 {[%clk 00:08:43]} {[%emt 00:02:31]} 20. gxh4 {[%clk 00:10:03]} {[%emt
00:02:18]} Qxh4+ {[%clk 00:08:49]} {[%emt 00:00:03]} 21. Nh3 {[%clk 00:10:13]}
g5 {[%clk 00:08:49]} {[%emt 00:00:11]} 22. Qd2 {[%clk 00:09:36]} {[%emt
00:00:47]} f6 {[%clk 00:08:05]} {[%emt 00:00:54]} 23. Kg1 {[%clk 00:08:26]}
{[%emt 00:01:20]} e5 {[%clk 00:07:59]} {[%emt 00:00:16]} 24. Nxg5 {[%clk
00:05:46]} {[%emt 00:02:50]} fxg5 {[%clk 00:08:00]} {[%emt 00:00:09]} 25. bxa5
{[%clk 00:05:54]} {[%emt 00:00:02]} Rab8 {[%clk 00:06:40]} {[%emt 00:01:30]} 26.
Rb6 {[%clk 00:05:26]} {[%emt 00:00:38]} Bc6 {[%clk 00:04:34]} {[%emt 00:02:15]}
27. a6 {[%clk 00:05:35]} {[%emt 00:00:01]} Kh7 {[%clk 00:04:07]} {[%emt
00:00:36]} 28. axb7 {[%clk 00:05:42]} {[%emt 00:00:04]} Bxb7 {[%clk 00:04:00]}
{[%emt 00:00:16]} 29. Rxd6 {[%clk 00:05:52]} {[%emt 00:00:01]} Bc8 {[%clk
00:03:42]} {[%emt 00:00:28]} 30. Qa5 {[%clk 00:05:46]} {[%emt 00:00:16]} Rb1+
{[%clk 00:02:56]} {[%emt 00:00:56]} 31. Bf1 {[%clk 00:05:52]} {[%emt 00:00:03]}
Qg3+ {[%clk 00:02:39]} {[%emt 00:00:27]} 32. Rg2 {[%clk 00:05:13]} {[%emt
00:00:50]} Rxf1+ {[%clk 00:02:33]} {[%emt 00:00:16]} 33. Kxf1 {[%clk 00:05:21]}
{[%emt 00:00:02]} Qxf3+ {[%clk 00:02:06]} {[%emt 00:00:37]} 34. Kg1 {[%clk
00:05:00]} {[%emt 00:00:31]} Qe3+ {[%clk 00:01:49]} {[%emt 00:00:27]} 35. Kh2
{[%clk 00:04:45]} {[%emt 00:00:25]} Qh3+ {[%clk 00:01:06]} {[%emt 00:00:53]} 36.
Kg1 {[%clk 00:04:50]} {[%emt 00:00:05]} Qe3+ {[%clk 00:01:00]} {[%emt
00:00:14]} 37. Kh2 {[%clk 00:04:54]} {[%emt 00:00:08]} Qh3+ {[%clk 00:00:41]}
{[%emt 00:00:28]} 1/2-1/2